fUST/lending_fUST_20250926
["ID","MTS","AMOUNT","RATE_DAILY","PERIOD"]
[387740794,1758834649719,-480.0,0.00019728,2]
[387740795,1758834649728,-480.0,0.00019728,2]
[387740796,1758834649738,-480.0,0.00019728,2]
[387740797,1758834649748,-480.0,0.00019728,2]
[387740798,1758834649758,-1502.1,0.00019728,2]
[387740799,1758834649768,-480.0,0.00019728,2]
[387740800,1758834649778,-480.0,0.00019728,2]
[387740801,1758834649788,-156.38666459,0.00019728,2]
[387740802,1758834649798,-480.0,0.00019728,2]
[387740803,1758834649808,-480.0,0.00019728,2]
[387740804,1758834649818,-189.43472014,0.00019728,2]
[387740805,1758834649828,-4525.77,0.00019728,2]
[387740806,1758834649837,-820.61,0.00019728,2]
[387740807,1758834649848,-572.57981748,0.00019729,2]
[387740808,1758834649857,-480.0,0.00019729,2]
[387740809,1758834649866,-530.59,0.00019729,2]
[387740810,1758834649876,-480.0,0.00019729,2]
[387740811,1758834649885,-545.65,0.00019729,2]
[387740812,1758834649894,-2085.25,0.00019729,2]
[387740813,1758834649904,-1208.18,0.00019729,2]
[387740814,1758834649914,-480.0,0.00019729,2]
[387740815,1758834649923,-1052.91,0.0001973,2]
[387740816,1758834649933,-500.78958873,0.0001973,2]
[387740817,1758834649942,-500.0,0.00019731,2]
[387740818,1758834649952,-208.0,0.00019732,2]
[387740819,1758834649962,-500.0,0.00019732,2]
[387740820,1758834649972,-151.0,0.00019732,2]
[387740821,1758834649981,-151.0,0.00019732,2]
[387740822,1758834649991,-198.0,0.00019732,2]
[387740823,1758834650001,-198.0,0.00019732,2]
[387740824,1758834650010,-2169.64932908,0.00019736,2]
[387740825,1758834650020,-355.76659154,0.00019759,2]
[387740826,1758834650029,-168.0,0.00019774,2]
[387740827,1758834650039,-168.0,0.00019797,2]
[387740828,1758834650048,-168.0,0.00019799,2]
[387740829,1758834650058,-151.0,0.000198,2]
[387740830,1758834650067,-151.0,0.000198,2]
[387740831,1758834650078,-151.0,0.000198,2]
[387740832,1758834650088,-168.0,0.00019853,2]
[387740833,1758834650098,-1681.99209875,0.00019861,2]
[387740834,1758834650107,-168.0,0.00019884,2]
[387740835,1758834650117,-151.0,0.000199,2]
[387740836,1758834650126,-151.0,0.000199,2]
[387740837,1758834650136,-151.0,0.000199,2]
[387740838,1758834650146,-2009.1234969,0.000199,2]
[387740839,1758834650155,-168.0,0.0001995,2]
[387740840,1758834650165,-500.0,0.00019973,2]
[387740841,1758834650175,-514.16553402,0.00019973,2]
[387740842,1758834650185,-500.0,0.00019973,2]
[387740843,1758834650195,-500.0132408,0.00019973,2]
[387740844,1758834650206,-507.47765638,0.00019973,2]
[387740845,1758834650215,-500.0,0.00019973,2]
[387740846,1758834650225,-500.0,0.00019973,2]
[387740847,1758834650306,-336.68098752,0.00019973,2]
[387740848,1758834650316,-172.60979925,0.00019973,2]
[387740849,1758834650326,-500.0,0.00019973,2]
[387740850,1758834650335,-500.0,0.00019973,2]
[387740851,1758834650345,-500.0,0.00019973,2]
[387740852,1758834650354,-500.0,0.00019973,2]
[387740853,1758834650364,-324.28321046,0.00019973,2]
[387740854,1758834650373,-500.0,0.00019973,2]
[387740855,1758834650383,-500.0,0.00019973,2]
[387740856,1758834650392,-500.0,0.00019973,2]
[387740857,1758834650402,-1596.9833536,0.00019988,2]
[387740858,1758834650412,-1163.83622813,0.0001999,2]
[387740859,1758834650421,-12790.07195074,0.0001999,2]
[387740860,1758834650515,-480.0,0.0001999,2]
[387741432,1758834740039,-300.0,0.00019177,2]
[387741433,1758834740070,-625.52142659,0.00019177,2]
[387741434,1758834740098,-480.0,0.00019178,2]
[387741435,1758834740125,-480.0,0.00019178,2]
[387741436,1758834740154,-2007.12714682,0.00019178,2]
[387741437,1758834742855,-2214.71285318,0.00019178,2]
[387741438,1758834742884,-480.0,0.00019178,2]
[387741439,1758834742912,-480.0,0.00019178,2]
[387741440,1758834742940,-480.0,0.00019178,2]
[387741441,1758834742968,-480.0,0.00019178,2]
[387741442,1758834742996,-480.0,0.00019178,2]
[387741450,1758834780209,-500.0,0.00019177,2]
[387741451,1758834780238,-500.0,0.00019177,2]
[387741452,1758834780265,-500.0,0.00019177,2]
[387741453,1758834780293,-500.0,0.00019177,2]
[387741454,1758834780323,-500.0,0.00019177,2]
[387741455,1758834780350,-500.0,0.00019177,2]
[387741456,1758834780377,-500.0,0.00019177,2]
[387741457,1758834780404,-500.0,0.00019177,2]
[387741458,1758834780431,-500.0,0.00019177,2]
[387741459,1758834780458,-496.43591207,0.00019177,2]
[387741461,1758834780784,-500.0,0.00019177,2]
[387741462,1758834780815,-174.45038507,0.00019177,2]
[387741463,1758834780842,-270.55534347,0.00019177,2]
[387741464,1758834780871,-2519.91,0.00019178,2]
[387741465,1758834780898,-480.0,0.00019178,2]
[387741466,1758834780925,-480.0,0.00019178,2]
[387741467,1758834780955,-480.0,0.00019178,2]
[387741468,1758834780992,-480.0,0.00019178,2]
[387741469,1758834781019,-480.0,0.00019178,2]
[387741470,1758834781046,-792.27,0.00019178,2]
[387741471,1758834781076,-1175.14,0.00019178,2]
[387741472,1758834781103,-480.0,0.00019178,2]
[387741473,1758834781129,-584.75,0.00019178,2]
[387741474,1758834781157,-692.14,0.00019178,2]
[387741475,1758834790204,-300.0,0.00019176,2]
[387741476,1758834790233,-500.0,0.00019177,2]
[387741477,1758834790260,-650.0,0.00019177,2]
[387741478,1758834790288,-500.0,0.00019177,2]
[387741479,1758834790317,-500.0,0.00019177,2]
[387741480,1758834790344,-500.0,0.00019177,2]
[387741481,1758834790372,-500.0,0.00019177,2]
[387741482,1758834790402,-631.41,0.00019178,2]
[387741483,1758834790431,-796.94,0.00019178,2]
[387741484,1758834790624,-243.31,0.00019178,2]
[387741485,1758834790653,-467.15832048,0.00019178,2]
[387741486,1758834790682,-480.0,0.00019178,2]
[387741487,1758834790712,-480.0,0.00019178,2]
[387741488,1758834790746,-2643.06,0.00019178,2]
[387741489,1758834790775,-480.0,0.00019178,2]
[387741491,1758834800218,-500.0,0.00019177,2]
[387741492,1758834800253,-650.0,0.00019177,2]
[387741493,1758834800289,-500.0,0.00019177,2]
[387741494,1758834800322,-500.0,0.00019177,2]
[387741495,1758834800355,-500.0,0.00019177,2]
[387741496,1758834800389,-500.0,0.00019177,2]
[387741497,1758834800424,-511.67,0.00019178,2]
[387741498,1758834800461,-480.0,0.00019178,2]
[387741499,1758834800498,-480.0,0.00019178,2]
[387741500,1758834800528,-276.67,0.00019178,2]
[387741501,1758834800698,-203.33,0.00019178,2]
[387741502,1758834800734,-480.0,0.00019178,2]
[387741503,1758834800767,-480.0,0.00019178,2]
[387741504,1758834800802,-482.26189202,0.00019178,2]
[387741505,1758834800838,-480.0,0.00019178,2]
[387741506,1758834800871,-480.0,0.00019178,2]
[387741507,1758834800903,-480.0,0.00019178,2]
[387741508,1758834800936,-1314.33,0.00019178,2]
[387741509,1758834800968,-480.0,0.00019178,2]
[387741510,1758834810258,-480.0,0.00019178,2]
[387741511,1758834810280,-480.0,0.00019178,2]
[387741512,1758834810304,-485.92541287,0.00019178,2]
[387741513,1758834810330,-480.0,0.00019178,2]
[387741514,1758834810358,-1229.65,0.00019178,2]
[387741515,1758834810385,-480.0,0.00019178,2]
[387741516,1758834810415,-506.25,0.00019178,2]
[387741517,1758834820349,-2150.13,0.00019178,2]
[387741518,1758834820376,-480.0,0.00019178,2]
[387741519,1758834820403,-520.0,0.00019178,3]
[387741520,1758834820432,-814.43,0.00019178,2]
[387741521,1758834820462,-480.0,0.00019178,2]
[387741522,1758834820490,-480.0,0.00019178,2]
[387741523,1758834840432,-500.0,0.00019177,2]
[387741524,1758834840461,-500.0,0.00019177,2]
[387741525,1758834840490,-500.0,0.00019177,2]
[387741526,1758834840518,-176.92078816,0.00019177,2]
[387741527,1758834840547,-500.0,0.00019177,2]
[387741528,1758834840576,-500.0,0.00019177,2]
[387741529,1758834840604,-500.0,0.00019177,2]
[387741530,1758834840637,-500.0,0.00019177,2]
[387741531,1758834840763,-500.0,0.00019177,2]
[387741532,1758834840793,-500.0,0.00019177,2]
[387741533,1758834840823,-146.16842368,0.00019177,2]
[387741534,1758834850376,-300.0,0.00019176,2]
[387741535,1758834850404,-353.83157632,0.00019177,2]
[387741536,1758834850430,-500.0,0.00019177,2]
[387741537,1758834850458,-500.0,0.00019177,2]
[387741538,1758834850486,-500.0,0.00019177,2]
[387741539,1758834850516,-500.0,0.00019177,2]
[387741540,1758834850544,-582.85148863,0.00019177,2]
[387741541,1758834850573,-500.0,0.00019177,2]
[387741542,1758834850604,-200.0,0.00019177,2]
[387741543,1758834850634,-500.0,0.00019177,2]
[387741544,1758834850663,-336.91967733,0.00019177,2]
[387741545,1758834850905,-500.0,0.00019177,2]
[387741546,1758834850935,-500.0,0.00019177,2]
[387741547,1758834850964,-500.0,0.00019177,2]
[387741548,1758834850992,-500.0,0.00019177,2]
[387741549,1758834851020,-500.0,0.00019177,2]
[387741550,1758834851047,-500.0,0.00019177,2]
[387741551,1758834851075,-500.0,0.00019177,2]
[387741552,1758834851102,-500.0,0.00019177,2]
[387741553,1758834851130,-500.0,0.00019177,2]
[387741554,1758834851158,-500.0,0.00019177,2]
[387741555,1758834860376,-500.0,0.00019177,2]
[387741556,1758834860406,-500.0,0.00019177,2]
[387741557,1758834860434,-500.0,0.00019177,2]
[387741558,1758834860462,-500.0,0.00019177,2]
[387741559,1758834860489,-461.72483777,0.00019177,2]
[387741560,1758834860516,-500.0,0.00019177,2]
[387741561,1758834860545,-500.0,0.00019177,2]
[387741562,1758834860574,-500.0,0.00019177,2]
[387741563,1758834860604,-500.0,0.00019177,2]
[387741564,1758834860634,-500.0,0.00019177,2]
[387741565,1758834860777,-500.0,0.00019177,2]
[387741566,1758834860809,-500.0,0.00019177,2]
[387741567,1758834860840,-500.0,0.00019177,2]
[387741568,1758834860869,-500.0,0.00019177,2]
[387741569,1758834860897,-500.0,0.00019177,2]
[387741570,1758834861026,-663.01,0.00019178,2]
[387741571,1758834861056,-1316.67,0.00019178,2]
[387741572,1758834861084,-480.0,0.00019178,2]
[387741574,1758834870329,-480.0,0.00019178,2]
[387741575,1758834870358,-482.87735779,0.00019178,2]
[387741576,1758834870386,-480.0,0.00019178,2]
[387741577,1758834870416,-480.0,0.00019178,2]
[387741578,1758834870444,-480.0,0.00019178,2]
[387741579,1758834870471,-480.0,0.00019178,2]
[387741580,1758834870500,-480.0,0.00019178,2]
[387741581,1758834870527,-486.84416343,0.00019178,2]
[387741582,1758834870556,-794.09,0.00019178,2]
[387741583,1758834870584,-232.38695756,0.00019178,2]
[387741584,1758834900583,-500.0,0.00019177,2]
[387741585,1758834900613,-500.0,0.00019177,2]
[387741586,1758834900643,-500.0,0.00019177,2]
[387741587,1758834900672,-500.0,0.00019177,2]
[387741588,1758834900702,-250.0,0.00019177,2]
[387741589,1758834900730,-247.61304244,0.00019178,2]
[387741590,1758834900761,-480.0,0.00019178,2]
[387741591,1758834900791,-480.0,0.00019178,2]
[387741592,1758834900821,-516.12,0.00019178,2]
[387741593,1758834900851,-480.0,0.00019178,2]
[387741594,1758834900880,-480.0,0.00019178,2]
[387741595,1758834910415,-297.0,0.00019176,2]
[387741596,1758834910445,-300.0,0.00019176,2]
[387741597,1758834910473,-1200.0,0.00019177,2]
[387741598,1758834910499,-480.0,0.00019178,2]
[387741599,1758834910528,-2454.91,0.00019178,2]
[387741600,1758834910555,-3.79,0.00019178,2]
[387741601,1758834920440,-528.61,0.00019178,2]
[387741602,1758834920469,-480.0,0.00019178,2]
[387741603,1758834920499,-806.87,0.00019178,2]
[387741604,1758834920528,-1146.17,0.00019178,2]
[387741605,1758834920557,-1308.4,0.00019178,2]
[387741606,1758834920586,-480.0,0.00019178,2]
[387741607,1758834920615,-19.91,0.00019179,2]
[387741608,1758834930491,-480.0,0.00019178,2]
[387741609,1758834930520,-480.0,0.00019178,2]
[387741610,1758834930549,-460.09,0.00019179,2]
[387741611,1758834930577,-250.0,0.00019179,2]
[387741612,1758834930608,-443.90411882,0.00019179,2]
[387741613,1758834930637,-500.0,0.00019179,2]
[387741614,1758834930668,-1824.6,0.0001918,2]
[387741615,1758834930699,-480.0,0.0001918,2]
[387741616,1758834955705,-480.0,0.00019178,2]
[387741617,1758834955734,-480.0,0.00019178,2]
[387741618,1758834955763,-480.0,0.0001918,2]
[387741619,1758834955796,-923.61,0.0001918,2]
[387741620,1758834955826,-480.0,0.0001918,2]
[387741621,1758834955856,-480.0,0.0001918,2]
[387741626,1758834990689,-480.0,0.00019178,2]
[387741627,1758834990728,-480.0,0.00019178,2]
[387741628,1758834990768,-480.0,0.00019178,2]
[387741629,1758834990811,-2553.23,0.00019178,2]
[387741630,1758834990848,-480.0,0.00019178,2]
[387741631,1758834990892,-393.336,0.00019178,2]
[387741634,1758835000567,-2080.55,0.00019178,2]
[387741635,1758835000597,-480.0,0.00019178,2]
[387741636,1758835000628,-504.92,0.00019178,2]
[387741637,1758835000660,-300.0,0.00019179,2]
[387741638,1758835010588,-480.0,0.00019178,2]
[387741639,1758835010617,-480.0,0.00019178,2]
[387741640,1758835010645,-480.0,0.00019178,2]
[387741641,1758835010674,-1052.11,0.00019178,2]
[387741642,1758835010704,-758.08,0.0001918,2]
[387741643,1758835041054,-1200.0,0.00019177,2]
[387741644,1758835041082,-202.22186805,0.00019178,2]
[387741645,1758835041111,-480.0,0.00019178,2]
[387741646,1758835041139,-480.0,0.00019178,2]
[387741647,1758835041166,-480.0,0.00019178,2]
[387741648,1758835041193,-480.0,0.00019178,2]
[387741649,1758835041221,-300.0,0.00019179,2]
[387741650,1758835060796,-480.0,0.00019178,2]
[387741651,1758835060826,-480.0,0.00019178,2]
[387741652,1758835060855,-480.0,0.00019178,2]
[387741653,1758835060885,-480.0,0.00019178,2]
[387741654,1758835060914,-1178.41,0.00019178,2]
[387741655,1758835060944,-303.56,0.0001918,2]
[387741656,1758835070690,-511.85,0.00019178,2]
[387741657,1758835070719,-480.0,0.00019178,2]
[387741658,1758835070750,-3689.79,0.00019179,2]
[387741660,1758835080686,-480.0,0.00019178,2]
[387741661,1758835080716,-480.0,0.00019178,2]
[387741662,1758835080746,-636.73,0.00019179,2]
[387741663,1758835080777,-3196.07,0.0001918,2]
[387741665,1758835100868,-1281.81,0.00019178,2]
[387741666,1758835100898,-480.0,0.00019178,2]
[387741667,1758835100927,-300.0,0.00019179,2]
[387741668,1758835100954,-500.0,0.00019179,2]
[387741669,1758835100981,-500.0,0.00019179,2]
[387741670,1758835101008,-514.78738437,0.00019179,2]
[387741671,1758835101038,-1057.15,0.0001918,2]
[387741672,1758835101066,-252.51523126,0.0001918,2]
[387741673,1758835110743,-1118.41,0.00019178,2]
[387741674,1758835110773,-781.0,0.00019178,2]
[387741675,1758835110807,-480.0,0.00019178,2]
[387741676,1758835110835,-480.0,0.00019178,2]
[387741677,1758835110866,-500.0,0.00019179,2]
[387741678,1758835110997,-175.87238763,0.00019179,2]
[387741679,1758835111028,-500.0,0.00019179,2]
[387741680,1758835111059,-500.0,0.00019179,2]
[387741681,1758835111087,-429.44522474,0.00019179,2]
[387741684,1758835130960,-70.55477526,0.00019179,2]
[387741685,1758835130991,-500.0,0.00019179,2]
[387741686,1758835131020,-442.10280611,0.00019179,2]
[387741687,1758835131049,-429.41446024,0.00019179,2]
[387741688,1758835131079,-765.08,0.00019179,2]
[387741689,1758835131108,-500.0,0.00019179,2]
[387741690,1758835131235,-500.0,0.00019179,2]
[387741691,1758835131265,-500.0,0.00019179,2]
[387741692,1758835131295,-500.0,0.00019179,2]
[387741693,1758835131324,-500.0,0.00019179,2]
[387741694,1758835131352,-85.70591678,0.00019179,2]
[387741695,1758835131481,-414.29408322,0.00019179,2]
[387741696,1758835131509,-500.0,0.00019179,2]
[387741697,1758835131536,-182.9881309,0.00019179,2]
[387741698,1758835131565,-227.48476874,0.0001918,2]
[387741699,1758835131593,-759.26,0.0001918,2]
[387741700,1758835131623,-996.9,0.0001918,2]
[387741701,1758835131650,-480.0,0.0001918,2]
[387741702,1758835131678,-480.0,0.0001918,2]
[387741703,1758835131707,-480.0,0.0001918,2]
[387741704,1758835131737,-478.15603428,0.0001918,2]
[387741705,1758835131848,-1.84396572,0.0001918,2]
[387741706,1758835131883,-485.16,0.0001918,2]
[387741707,1758835131917,-480.0,0.0001918,2]
[387741708,1758835131947,-800.5,0.0001918,2]
[387741709,1758835131980,-970.74,0.0001918,2]
[387741710,1758835132009,-480.0,0.0001918,2]
[387741711,1758835132037,-480.0,0.0001918,2]
[387741712,1758835133171,-330.28743951,0.00019178,2]
[387741713,1758835140868,-149.71256049,0.00019178,2]
[387741714,1758835140902,-480.0,0.00019178,2]
[387741715,1758835150766,-2372.62,0.00019178,2]
[387741716,1758835150796,-480.0,0.00019178,2]
[387741717,1758835150829,-480.0,0.00019178,2]
[387741718,1758835150857,-480.0,0.00019178,2]
[387741719,1758835150888,-300.0,0.00019179,2]
[387741720,1758835151032,-631.52876757,0.0001918,2]
[387741721,1758835151237,-10000.01,0.0001918,2]
[387741722,1758835160831,-480.0,0.00019178,2]
[387741723,1758835160861,-480.0,0.00019178,2]
[387741724,1758835160889,-480.0,0.00019178,2]
[387741725,1758835160922,-480.0,0.00019178,2]
[387741726,1758835160951,-480.0,0.00019178,2]
[387741727,1758835160981,-500.0,0.00019179,2]
[387741728,1758835161012,-500.0,0.00019179,2]
[387741729,1758835161042,-500.0,0.00019179,2]
[387741730,1758835161071,-500.0,0.00019179,2]
[387741731,1758835161100,-248.1952337,0.00019179,2]
[387741732,1758835161128,-203.6195326,0.00019179,2]
[387741733,1758835161382,-296.3804674,0.00019179,2]
[387741734,1758835170869,-480.0,0.00019178,2]
[387741735,1758835170899,-480.0,0.00019178,2]
[387741736,1758835170930,-480.0,0.00019178,2]
[387741737,1758835170959,-500.0,0.00019179,2]
[387741738,1758835170988,-388.09193015,0.00019179,2]
[387741739,1758835171019,-500.0,0.00019179,2]
[387741740,1758835171048,-419.88562251,0.00019179,2]
[387741741,1758835171076,-500.0,0.00019179,2]
[387741742,1758835171104,-500.0,0.00019179,2]
[387741743,1758835171133,-500.0,0.00019179,2]
[387741744,1758835171163,-4.05489468,0.00019179,2]
[387741745,1758835171409,-495.94510532,0.00019179,2]
[387741746,1758835180865,-1273.89,0.00019178,2]
[387741747,1758835180897,-480.0,0.00019178,2]
[387741748,1758835180931,-482.80431564,0.00019178,2]
[387741749,1758835180958,-495.44199941,0.00019179,2]
[387741750,1758835180986,-514.44085985,0.00019179,2]
[387741751,1758835181016,-500.0,0.00019179,2]
[387741752,1758835181046,-482.5318543,0.00019179,2]
[387741753,1758835181075,-623.85467772,0.00019179,2]
[387741754,1758835181206,-294.08258616,0.00019179,2]
[387741756,1758835200990,-480.0,0.00019178,2]
[387741757,1758835201020,-576.48,0.00019178,2]
[387741758,1758835201051,-469.78305749,0.00019178,2]
[387741759,1758835201113,-6947.48388502,0.0001918,2]
[387741761,1758835261114,-480.0,0.00019178,2]
[387741762,1758835261144,-480.0,0.00019178,2]
[387741763,1758835261177,-480.0,0.00019178,2]
[387741764,1758835261206,-480.0,0.00019178,2]
[387741765,1758835261235,-1200.0,0.00019178,2]
[387741766,1758835261266,-480.0,0.00019178,2]
[387741767,1758835261294,-480.0,0.00019178,2]
[387741768,1758835261323,-480.0,0.00019178,2]
[387741769,1758835261352,-400.01,0.00019178,2]
[387741770,1758835261519,-79.99,0.00019178,2]
[387741772,1758835291210,-300.0,0.00019177,2]
[387741773,1758835291239,-374.29982094,0.00019178,2]
[387741774,1758835291270,-1993.86,0.00019178,2]
[387741775,1758835291300,-300.0,0.00019179,2]
[387741776,1758835291330,-300.0,0.00019179,2]
[387741777,1758835291361,-1675.12035812,0.00019179,2]
[387741778,1758835291461,-113.44964188,0.00019179,2]
[387741781,1758835323813,160.0,0.00021,6]
[387741783,1758835341126,-480.0,0.00019178,2]
[387741784,1758835341156,-480.0,0.00019178,2]
[387741785,1758835341185,-600.38,0.00019178,2]
[387741786,1758835341214,-458.27722924,0.00019178,2]
[387741787,1758835341243,-480.0,0.00019178,2]
[387741788,1758835341272,-1200.0,0.00019178,2]
[387741789,1758835341300,-165.91741384,0.00019179,2]
[387741790,1758835341329,-324.43173583,0.00019179,2]
[387741791,1758835341358,-370.31111499,0.00019179,2]
[387741792,1758835341387,-300.0,0.00019179,2]
[387741793,1758835341416,-44.51303629,0.0001918,2]
[387741794,1758835341596,-192.34893962,0.0001918,2]
[387741795,1758835351080,-1111.81,0.00019178,2]
[387741796,1758835351112,-3610.14,0.00019178,2]
[387741797,1758835351150,-556.11,0.00019178,2]
[387741801,1758835491441,-480.0,0.00019178,2]
[387741802,1758835491473,-733.2,0.00019178,2]
[387741803,1758835491501,-480.0,0.00019178,2]
[387741804,1758835491531,-655.39,0.00019178,2]
[387741805,1758835491559,-300.0,0.00019178,2]
[387741806,1758835491587,-480.0,0.00019178,2]
[387741807,1758835491616,-480.0,0.00019178,2]
[387741808,1758835491644,-480.0,0.00019179,2]
[387741809,1758835491673,-480.0,0.00019179,2]
[387741810,1758835491826,-1033.11,0.00019179,2]
[387741811,1758835491902,-862.83,0.00019179,2]
[387741812,1758835491918,-7933.79,0.00019179,2]
[387741813,1758835491933,-7625.9364461,0.00019179,2]
[387741814,1758835491943,-480.0,0.0001918,2]
[387741815,1758835491955,-480.0,0.0001918,2]
[387741816,1758835491965,-480.0,0.0001918,2]
[387741817,1758835491975,-934.0735539,0.0001918,2]
[387741822,1758835541549,-1714.05,0.00019178,2]
[387741823,1758835541578,-480.0,0.00019178,2]
[387741824,1758835541610,-1619.26,0.00019178,2]
[387741825,1758835541666,-2373.39,0.00019178,2]
[387741830,1758835571514,-480.0,0.00019178,2]
[387741831,1758835571546,-1200.0,0.00019179,2]
[387741832,1758835571576,-480.0,0.00019179,2]
[387741833,1758835571608,-300.0,0.00019179,2]
[387741834,1758835571640,-1248.4,0.0001918,2]
[387741835,1758835571670,-480.0,0.0001918,2]
[387741836,1758835571874,-1623.21,0.0001918,2]
[387741848,1758835746760,-702.65,0.00019178,2]
[387741849,1758835746791,-480.0,0.00019178,2]
[387741850,1758835746822,-1028.27,0.00019178,2]
[387741851,1758835746852,-480.0,0.00019178,2]
[387741852,1758835746883,-227.99416188,0.00019178,2]
[387741853,1758835746917,-480.0,0.00019178,2]
[387741854,1758835746948,-1559.55167624,0.00019178,2]
[387741855,1758835747067,-83.07832376,0.00019178,2]
[387741856,1758835748708,-269.89136979,0.00019178,2]
[387741875,1758835832775,-300.0,0.00019177,2]
[387741876,1758835832785,-1200.0,0.00019177,2]
[387741877,1758835832795,-333.97573786,0.00019178,2]
[387741878,1758835832804,-480.0,0.00019178,2]
[387741879,1758835832814,-990.06,0.00019178,2]
[387741880,1758835832823,-489.34435666,0.00019178,2]
[387741881,1758835832833,-3950.11,0.00019178,2]
[387741882,1758835832843,-950.29,0.00019179,2]
[387741883,1758835832852,-521.14422664,0.00019341,2]
[387741885,1758835832861,-409.22090343,0.00019341,2]
[387741887,1758835832871,-171.28,0.00019342,2]
[387741888,1758835832880,-359.54,0.00019342,3]
[387741890,1758835832889,-480.0,0.00019347,2]
[387741891,1758835832899,-465.33916274,0.00019347,2]
[387741892,1758835832908,-480.0,0.00019347,2]
[387741893,1758835832918,-480.0,0.00019347,2]
[387741894,1758835832928,-965.12,0.00019347,2]
[387741895,1758835832937,-333.99339596,0.00019347,2]
[387741896,1758835832948,-480.0,0.00019347,2]
[387741897,1758835832957,-480.0,0.00019347,2]
[387741898,1758835832966,-601.91936783,0.00019347,2]
[387741899,1758835832977,-381.54482538,0.00019348,2]
[387741900,1758835832990,-480.0,0.00019348,2]
[387741901,1758835832999,-241.70668548,0.00019348,2]
[387741902,1758835833009,-480.0,0.00019348,2]
[387741903,1758835833018,-478.31333077,0.00019348,2]
[387741904,1758835833032,-1.68666923,0.00019348,2]
[387741905,1758835833042,-1530.420415,0.00019348,2]
[387741906,1758835833053,-2611.939585,0.00019348,2]
[387741907,1758835833062,-497.64,0.00019348,2]
[387741908,1758835833072,-480.0,0.00019348,2]
[387741909,1758835833081,-480.0,0.00019348,2]
[387741910,1758835833090,-480.0,0.00019348,2]
[387741911,1758835833100,-480.0,0.00019348,2]
[387741912,1758835833109,-787.62,0.00019348,2]
[387741913,1758835833119,-1020.72,0.00019348,2]
[387741914,1758835833129,-480.0,0.00019348,2]
[387741915,1758835833139,-480.0,0.00019348,2]
[387741916,1758835833150,-480.0,0.00019348,2]
[387741917,1758835833159,-2582.97,0.00019348,2]
[387741918,1758835833169,-480.0,0.00019348,2]
[387741919,1758835833179,-480.0,0.00019348,2]
[387741920,1758835833189,-358.5471099,0.00019348,2]
[387741921,1758835833199,-480.0,0.00019348,2]
[387741922,1758835833209,-504.94,0.00019348,2]
[387741923,1758835833219,-480.0,0.00019348,2]
[387741924,1758835833229,-807.15,0.00019348,2]
[387741925,1758835833239,-480.0,0.00019348,2]
[387741926,1758835833249,-480.0,0.00019348,2]
[387741927,1758835833259,-480.0,0.00019348,2]
[387741928,1758835833268,-480.0,0.00019348,2]
[387741929,1758835833278,-480.0,0.00019348,2]
[387741930,1758835833288,-554.62,0.00019348,2]
[387741931,1758835833297,-532.68789009,0.00019349,2]
[387741932,1758835833307,-261.32416227,0.00019349,2]
[387741933,1758835833317,-497.97888243,0.00019349,2]